[Event "January 9 Late 2024"]
[Site "https://www.chess.com"]
[Date "2024.01.09"]
[Round "10"]
[White "Dubov, Daniil"]
[Black "Sevian, Samuel"]
[Result "1/2-1/2"]
[Board "2"]
[TimeControl "180+1"]
[WhiteFideId "24126055"]
[BlackFideId "2040506"]
[WhiteElo "3138"]
[BlackElo "3160"]
[WhiteTeam "RUS"]
[BlackTeam "USA"]
[WhiteClock "0:00:13"]
[BlackClock "0:00:16"]

1. d4 {[%clk 0:03:00]}  Nf6 {[%clk 0:02:46]} 2. Bf4 {[%clk 0:02:59]}  d5 {[%clk 0:02:46]} 3. e3 {[%clk 0:02:59]}  e6 {[%clk 0:02:47]} 4. Nd2 {[%clk 0:02:58]}  c5 {[%clk 0:02:47]} 5. Ngf3 {[%clk 0:02:58]}  Nc6 {[%clk 0:02:48]} 6. c3 {[%clk 0:02:58]}  Bd6 {[%clk 0:02:48]} 7. Bg3 {[%clk 0:02:58]}  O-O {[%clk 0:02:48]} 8. Bb5 {[%clk 0:02:57]}  Ne7 {[%clk 0:02:47]} 9. Bd3 {[%clk 0:02:57]}  c4 {[%clk 0:02:46]} 10. Bc2 {[%clk 0:02:56]}  b5 {[%clk 0:02:46]} 11. a3 {[%clk 0:02:48]}  Bb7 {[%clk 0:02:44]} 12. O-O {[%clk 0:02:38]}  a5 {[%clk 0:02:42]} 13. Bh4 {[%clk 0:02:38]}  Ng6 {[%clk 0:02:41]} 14. Bxf6 {[%clk 0:02:34]}  Qxf6 {[%clk 0:02:37]} 15. e4 {[%clk 0:02:34]}  Bc7 {[%clk 0:02:28]} 16. Re1 {[%clk 0:02:30]}  Qd8 {[%clk 0:02:26]} 17. g3 {[%clk 0:02:29]}  Ra6 {[%clk 0:02:24]} 18. e5 {[%clk 0:02:12]}  f5 {[%clk 0:02:22]} 19. exf6 {[%clk 0:02:06]}  gxf6 {[%clk 0:01:57]} 20. Nf1 {[%clk 0:01:48]}  Kh8 {[%clk 0:01:52]} 21. Ne3 {[%clk 0:01:33]}  Rg8 {[%clk 0:01:46]} 22. Ng2 {[%clk 0:01:33]}  Qf8 {[%clk 0:01:24]} 23. Qe2 {[%clk 0:01:24]}  Qh6 {[%clk 0:01:13]} 24. Kh1 {[%clk 0:01:12]}  Bc8 {[%clk 0:01:07]} 25. Nfh4 {[%clk 0:00:58]}  Bd7 {[%clk 0:01:03]} 26. Qf3 {[%clk 0:00:46]}  Nxh4 {[%clk 0:00:47]} 27. Nxh4 {[%clk 0:00:45]}  Raa8 {[%clk 0:00:46]} 28. Re2 {[%clk 0:00:41]}  Rae8 {[%clk 0:00:46]} 29. Rae1 {[%clk 0:00:40]}  Qg5 {[%clk 0:00:38]} 30. Ng2 {[%clk 0:00:33]}  b4 {[%clk 0:00:32]} 31. axb4 {[%clk 0:00:32]}  axb4 {[%clk 0:00:33]} 32. Re3 {[%clk 0:00:29]}  b3 {[%clk 0:00:27]} 33. Bb1 {[%clk 0:00:29]}  Bd6 {[%clk 0:00:26]} 34. Qe2 {[%clk 0:00:27]}  Qh6 {[%clk 0:00:23]} 35. f4 {[%clk 0:00:26]}  Re7 {[%clk 0:00:23]} 36. Qf2 {[%clk 0:00:25]}  Rge8 {[%clk 0:00:20]} 37. Nh4 {[%clk 0:00:24]}  Bc6 {[%clk 0:00:16]} 38. Kg1 {[%clk 0:00:16]}  Bd7 {[%clk 0:00:16]} 39. Kh1 {[%clk 0:00:16]}  Bc6 {[%clk 0:00:16]} 40. Kg1 {[%clk 0:00:16]}  Bd7 {[%clk 0:00:16]} 41. Kh1 {[%clk 0:00:13]} 1/2-1/2

[Event "January 9 Late 2024"]
[Site "https://www.chess.com"]
[Date "2024.01.09"]
[Round "10"]
[White "Chigaev, Maksim"]
[Black "Bortnyk, Olexandr"]
[Result "0-1"]
[Board "5"]
[TimeControl "180+1"]
[WhiteFideId "4108116"]
[BlackFideId "14120828"]
[WhiteElo "2992"]
[BlackElo "3115"]
[WhiteTeam "ESP"]
[BlackTeam "UKR"]
[WhiteClock "0:00:00"]
[BlackClock "0:00:03"]

1. c4 {[%clk 0:03:00]}  b6 {[%clk 0:02:59]} 2. Nf3 {[%clk 0:02:56]}  Bb7 {[%clk 0:02:51]} 3. g3 {[%clk 0:02:56]}  Nf6 {[%clk 0:02:49]} 4. Bg2 {[%clk 0:02:56]}  g6 {[%clk 0:02:49]} 5. O-O {[%clk 0:02:55]}  Bg7 {[%clk 0:02:49]} 6. d4 {[%clk 0:02:55]}  O-O {[%clk 0:02:48]} 7. Re1 {[%clk 0:02:43]}  e6 {[%clk 0:02:34]} 8. h4 {[%clk 0:02:40]}  d5 {[%clk 0:02:33]} 9. cxd5 {[%clk 0:02:39]}  exd5 {[%clk 0:02:34]} 10. Nc3 {[%clk 0:02:38]}  Re8 {[%clk 0:02:33]} 11. Bf4 {[%clk 0:02:35]}  Na6 {[%clk 0:02:31]} 12. Rc1 {[%clk 0:02:35]}  c5 {[%clk 0:02:21]} 13. e3 {[%clk 0:02:26]}  Nh5 {[%clk 0:02:11]} 14. Be5 {[%clk 0:02:09]}  f6 {[%clk 0:02:07]} 15. Bf4 {[%clk 0:02:03]}  Nxf4 {[%clk 0:02:07]} 16. gxf4 {[%clk 0:01:50]}  Qd7 {[%clk 0:02:02]} 17. h5 {[%clk 0:01:44]}  c4 {[%clk 0:01:56]} 18. hxg6 {[%clk 0:01:23]}  hxg6 {[%clk 0:01:57]} 19. a3 {[%clk 0:01:17]}  Kf7 {[%clk 0:01:53]} 20. Ne2 {[%clk 0:00:57]}  Nc7 {[%clk 0:01:49]} 21. Ng3 {[%clk 0:00:56]}  b5 {[%clk 0:01:48]} 22. f5 {[%clk 0:00:37]}  g5 {[%clk 0:01:44]} 23. Nh2 {[%clk 0:00:35]}  Rh8 {[%clk 0:01:43]} 24. Ng4 {[%clk 0:00:32]}  Rh4 {[%clk 0:01:41]} 25. Bf3 {[%clk 0:00:23]}  Rah8 {[%clk 0:01:39]} 26. Kg2 {[%clk 0:00:23]}  Ne8 {[%clk 0:01:40]} 27. Rh1 {[%clk 0:00:23]}  Rxh1 {[%clk 0:01:38]} 28. Nxh1 {[%clk 0:00:22]}  Qxf5 {[%clk 0:01:39]} 29. Ng3 {[%clk 0:00:22]}  Qe6 {[%clk 0:01:37]} 30. Qc2 {[%clk 0:00:16]}  Nd6 {[%clk 0:01:34]} 31. Rh1 {[%clk 0:00:12]}  Rxh1 {[%clk 0:01:33]} 32. Kxh1 {[%clk 0:00:11]}  f5 {[%clk 0:01:32]} 33. Nh2 {[%clk 0:00:12]}  g4 {[%clk 0:01:32]} 34. Bg2 {[%clk 0:00:12]}  Bf6 {[%clk 0:01:07]} 35. Nhf1 {[%clk 0:00:09]}  a5 {[%clk 0:01:06]} 36. Qd2 {[%clk 0:00:08]}  Bd8 {[%clk 0:01:06]} 37. Kg1 {[%clk 0:00:08]}  Qh6 {[%clk 0:00:48]} 38. Ne2 {[%clk 0:00:08]}  Bc7 {[%clk 0:00:46]} 39. Nfg3 {[%clk 0:00:08]}  Qg5 {[%clk 0:00:38]} 40. Nf4 {[%clk 0:00:08]}  Ne4 {[%clk 0:00:37]} 41. Bxe4 {[%clk 0:00:08]}  fxe4 {[%clk 0:00:35]} 42. Qc1 {[%clk 0:00:04]}  Bc6 {[%clk 0:00:32]} 43. Kg2 {[%clk 0:00:03]}  Bxf4 {[%clk 0:00:30]} 44. exf4 {[%clk 0:00:03]}  Qh6 {[%clk 0:00:31]} 45. Kg1 {[%clk 0:00:02]}  Qf6 {[%clk 0:00:29]} 46. Qd2 {[%clk 0:00:02]}  Qd8 {[%clk 0:00:23]} 47. f5 {[%clk 0:00:02]}  Bd7 {[%clk 0:00:14]} 48. Qh6 {[%clk 0:00:02]}  Qf6 {[%clk 0:00:15]} 49. Qh5+ {[%clk 0:00:02]}  Ke7 {[%clk 0:00:15]} 50. Qxg4 {[%clk 0:00:01]}  Qxd4 {[%clk 0:00:15]} 51. Qg5+ {[%clk 0:00:01]}  Qf6 {[%clk 0:00:14]} 52. Qe3 {[%clk 0:00:01]}  Qd6 {[%clk 0:00:09]} 53. Qg5+ {[%clk 0:00:02]}  Qf6 {[%clk 0:00:07]} 54. Qe3 {[%clk 0:00:02]}  b4 {[%clk 0:00:05]} 55. axb4 {[%clk 0:00:02]}  axb4 {[%clk 0:00:06]} 56. Qc5+ {[%clk 0:00:02]}  Qd6 {[%clk 0:00:06]} 57. Qd4 {[%clk 0:00:02]}  Kf7 {[%clk 0:00:05]} 58. Qh8 {[%clk 0:00:02]}  Qf6 {[%clk 0:00:05]} 59. Qh7+ {[%clk 0:00:02]}  Qg7 {[%clk 0:00:05]} 60. Qh5+ {[%clk 0:00:02]}  Ke7 {[%clk 0:00:06]} 61. Kf1 {[%clk 0:00:01]}  Qxb2 {[%clk 0:00:05]} 62. Qh4+ {[%clk 0:00:01]}  Qf6 {[%clk 0:00:05]} 63. Qf4 {[%clk 0:00:02]}  b3 {[%clk 0:00:05]} 64. Nh5 {[%clk 0:00:02]}  Qxf5 {[%clk 0:00:04]} 65. Qh4+ {[%clk 0:00:03]}  Kd6 {[%clk 0:00:05]} 66. Nf4 {[%clk 0:00:02]}  Qe5 {[%clk 0:00:04]} 67. Qh6+ {[%clk 0:00:00]}  Kc7 {[%clk 0:00:03]} 0-1

[Event "January 9 Late 2024"]
[Site "https://www.chess.com"]
[Date "2024.01.09"]
[Round "10"]
[White "Salem, A.R. Saleh"]
[Black "Andreikin, Dmitry"]
[Result "1-0"]
[Board "6"]
[TimeControl "180+1"]
[WhiteFideId "9301348"]
[BlackFideId "4158814"]
[WhiteElo "2976"]
[BlackElo "3101"]
[WhiteTeam "UAE"]
[BlackTeam "FID"]
[WhiteClock "0:00:03"]
[BlackClock "0:00:00"]

1. d4 {[%clk 0:03:00]}  g6 {[%clk 0:03:00]} 2. e4 {[%clk 0:03:00]}  Bg7 {[%clk 0:03:01]} 3. c4 {[%clk 0:03:01]}  e6 {[%clk 0:03:00]} 4. Nc3 {[%clk 0:03:00]}  Ne7 {[%clk 0:03:01]} 5. h4 {[%clk 0:02:59]}  d5 {[%clk 0:02:58]} 6. cxd5 {[%clk 0:02:57]}  exd5 {[%clk 0:02:59]} 7. e5 {[%clk 0:02:58]}  c5 {[%clk 0:02:59]} 8. dxc5 {[%clk 0:02:23]}  Nbc6 {[%clk 0:02:56]} 9. Nf3 {[%clk 0:02:13]}  O-O {[%clk 0:02:46]} 10. h5 {[%clk 0:02:10]}  Bg4 {[%clk 0:02:46]} 11. hxg6 {[%clk 0:01:53]}  hxg6 {[%clk 0:02:25]} 12. Be2 {[%clk 0:01:52]}  Qa5 {[%clk 0:01:52]} 13. Kf1 {[%clk 0:01:35]}  Bxf3 {[%clk 0:01:44]} 14. gxf3 {[%clk 0:01:26]}  Nxe5 {[%clk 0:01:39]} 15. Nxd5 {[%clk 0:01:10]}  Qxc5 {[%clk 0:01:39]} 16. Nxe7+ {[%clk 0:00:58]}  Qxe7 {[%clk 0:01:40]} 17. Be3 {[%clk 0:00:50]}  Qf6 {[%clk 0:01:25]} 18. Kg2 {[%clk 0:00:43]}  Rad8 {[%clk 0:00:56]} 19. Qg1 {[%clk 0:00:43]}  Rfe8 {[%clk 0:00:40]} 20. Qh2 {[%clk 0:00:43]}  Nd7 {[%clk 0:00:36]} 21. Rad1 {[%clk 0:00:33]}  Rxe3 {[%clk 0:00:33]} 22. fxe3 {[%clk 0:00:33]}  Qxb2 {[%clk 0:00:33]} 23. Kf1 {[%clk 0:00:29]}  Qb6 {[%clk 0:00:32]} 24. Qh7+ {[%clk 0:00:08]}  Kf8 {[%clk 0:00:32]} 25. Qh4 {[%clk 0:00:09]}  Bf6 {[%clk 0:00:24]} 26. Qf4 {[%clk 0:00:08]}  Ne5 {[%clk 0:00:22]} 27. Rxd8+ {[%clk 0:00:04]}  Qxd8 {[%clk 0:00:23]} 28. Kf2 {[%clk 0:00:03]}  Bg7 {[%clk 0:00:22]} 29. Qe4 {[%clk 0:00:04]}  Qd2 {[%clk 0:00:17]} 30. Rd1 {[%clk 0:00:03]}  Qxa2 {[%clk 0:00:17]} 31. f4 {[%clk 0:00:03]}  Nc6 {[%clk 0:00:16]} 32. Rd7 {[%clk 0:00:03]}  Qb2 {[%clk 0:00:10]} 33. Kf3 {[%clk 0:00:03]}  Qf6 {[%clk 0:00:09]} 34. Bc4 {[%clk 0:00:03]}  Ne5+ {[%clk 0:00:05]} 35. Qxe5 {[%clk 0:00:03]}  Qc6+ {[%clk 0:00:06]} 36. Qd5 {[%clk 0:00:03]}  Ke8 {[%clk 0:00:04]} 37. Qxc6 {[%clk 0:00:03]}  bxc6 {[%clk 0:00:05]} 38. Rxf7 {[%clk 0:00:03]}  Bc3 {[%clk 0:00:00]} 39. Rxa7 {[%clk 0:00:03]} 1-0

[Event "January 9 Late 2024"]
[Site "https://www.chess.com"]
[Date "2024.01.09"]
[Round "10"]
[White "Oparin, Grigoriy"]
[Black "Aravindh, Chithambaram VR."]
[Result "0-1"]
[Board "8"]
[TimeControl "180+1"]
[WhiteFideId "24125890"]
[BlackFideId "5072786"]
[WhiteElo "3065"]
[BlackElo "2941"]
[WhiteTeam "USA"]
[BlackTeam "IND"]
[WhiteClock "0:00:01"]
[BlackClock "0:00:05"]

1. Nf3 {[%clk 0:03:00]}  Nf6 {[%clk 0:02:59]} 2. g3 {[%clk 0:03:01]}  b5 {[%clk 0:03:00]} 3. e3 {[%clk 0:03:00]}  a6 {[%clk 0:02:59]} 4. Bg2 {[%clk 0:03:00]}  Bb7 {[%clk 0:02:59]} 5. O-O {[%clk 0:03:01]}  e6 {[%clk 0:02:59]} 6. b3 {[%clk 0:03:01]}  Be7 {[%clk 0:03:00]} 7. Bb2 {[%clk 0:03:01]}  O-O {[%clk 0:03:00]} 8. d4 {[%clk 0:03:01]}  c5 {[%clk 0:03:01]} 9. Nbd2 {[%clk 0:02:57]}  d5 {[%clk 0:02:57]} 10. dxc5 {[%clk 0:02:54]}  Bxc5 {[%clk 0:02:58]} 11. Qe2 {[%clk 0:02:54]}  Nbd7 {[%clk 0:02:57]} 12. Rfd1 {[%clk 0:02:49]}  Qc7 {[%clk 0:02:57]} 13. c4 {[%clk 0:02:48]}  dxc4 {[%clk 0:02:56]} 14. bxc4 {[%clk 0:02:49]}  b4 {[%clk 0:02:57]} 15. Nb3 {[%clk 0:02:45]}  Be7 {[%clk 0:02:56]} 16. Rac1 {[%clk 0:02:31]}  a5 {[%clk 0:02:48]} 17. Nbd4 {[%clk 0:02:30]}  Nc5 {[%clk 0:02:38]} 18. Nb5 {[%clk 0:02:28]}  Qc8 {[%clk 0:02:23]} 19. Bxf6 {[%clk 0:02:25]}  Bxf6 {[%clk 0:02:22]} 20. Nd6 {[%clk 0:02:25]}  Qc7 {[%clk 0:02:19]} 21. Nxb7 {[%clk 0:02:25]}  Nxb7 {[%clk 0:02:20]} 22. Nd4 {[%clk 0:02:21]}  Rad8 {[%clk 0:02:16]} 23. c5 {[%clk 0:02:16]}  Nxc5 {[%clk 0:01:37]} 24. Qb5 {[%clk 0:02:16]}  Rc8 {[%clk 0:01:26]} 25. Rc4 {[%clk 0:02:11]}  Be7 {[%clk 0:00:17]} 26. Nc6 {[%clk 0:02:07]}  Bd6 {[%clk 0:00:14]} 27. Rxd6 {[%clk 0:01:55]}  Qxd6 {[%clk 0:00:14]} 28. Rxc5 {[%clk 0:01:55]}  Kh8 {[%clk 0:00:07]} 29. Bf3 {[%clk 0:01:42]}  Qd2 {[%clk 0:00:04]} 30. Qxa5 {[%clk 0:01:25]}  Ra8 {[%clk 0:00:04]} 31. Na7 {[%clk 0:01:25]}  Rad8 {[%clk 0:00:03]} 32. Qa6 {[%clk 0:00:32]}  Qe1+ {[%clk 0:00:02]} 33. Qf1 {[%clk 0:00:31]}  Qd2 {[%clk 0:00:02]} 34. Nc6 {[%clk 0:00:26]}  Ra8 {[%clk 0:00:03]} 35. Rc4 {[%clk 0:00:20]}  Rxa2 {[%clk 0:00:02]} 36. Rxb4 {[%clk 0:00:18]}  Qc3 {[%clk 0:00:02]} 37. Rb1 {[%clk 0:00:17]}  Rfa8 {[%clk 0:00:02]} 38. Nd4 {[%clk 0:00:17]}  Re8 {[%clk 0:00:01]} 39. Rc1 {[%clk 0:00:17]}  Qa5 {[%clk 0:00:01]} 40. Rd1 {[%clk 0:00:17]}  Qa7 {[%clk 0:00:01]} 41. h4 {[%clk 0:00:17]}  Qa5 {[%clk 0:00:01]} 42. Kg2 {[%clk 0:00:17]}  Rf8 {[%clk 0:00:02]} 43. Qd3 {[%clk 0:00:17]}  h6 {[%clk 0:00:02]} 44. Ne2 {[%clk 0:00:18]}  Ra3 {[%clk 0:00:02]} 45. Qe4 {[%clk 0:00:17]}  Kg8 {[%clk 0:00:02]} 46. Nf4 {[%clk 0:00:16]}  Ra4 {[%clk 0:00:02]} 47. Qd3 {[%clk 0:00:16]}  Ra3 {[%clk 0:00:02]} 48. Qd6 {[%clk 0:00:16]}  Ra2 {[%clk 0:00:02]} 49. Nh3 {[%clk 0:00:15]}  Qa3 {[%clk 0:00:01]} 50. Rd3 {[%clk 0:00:14]}  Qb2 {[%clk 0:00:01]} 51. Rd1 {[%clk 0:00:13]}  Qc2 {[%clk 0:00:01]} 52. Qd4 {[%clk 0:00:12]}  Qb2 {[%clk 0:00:01]} 53. Qd3 {[%clk 0:00:12]}  Qa3 {[%clk 0:00:01]} 54. Qd7 {[%clk 0:00:12]}  Qxe3 {[%clk 0:00:01]} 55. Qd6 {[%clk 0:00:10]}  Qa7 {[%clk 0:00:02]} 56. Qd3 {[%clk 0:00:10]}  Qa3 {[%clk 0:00:02]} 57. Qe4 {[%clk 0:00:10]}  Qa4 {[%clk 0:00:02]} 58. Qe5 {[%clk 0:00:10]}  Qa5 {[%clk 0:00:03]} 59. Qf4 {[%clk 0:00:10]}  Qa7 {[%clk 0:00:04]} 60. Qg4 {[%clk 0:00:10]}  Ra4 {[%clk 0:00:04]} 61. Qh5 {[%clk 0:00:10]}  Qa5 {[%clk 0:00:04]} 62. Qxa5 {[%clk 0:00:09]}  Rxa5 {[%clk 0:00:05]} 63. Nf4 {[%clk 0:00:09]}  Rb8 {[%clk 0:00:05]} 64. Rd2 {[%clk 0:00:09]}  Rab5 {[%clk 0:00:05]} 65. Rd7 {[%clk 0:00:08]}  Rc8 {[%clk 0:00:04]} 66. Nd3 {[%clk 0:00:06]}  Rbb8 {[%clk 0:00:03]} 67. Ne5 {[%clk 0:00:06]}  Rf8 {[%clk 0:00:03]} 68. Nc6 {[%clk 0:00:07]}  Rb2 {[%clk 0:00:03]} 69. Ne5 {[%clk 0:00:07]}  Rc2 {[%clk 0:00:02]} 70. Bh5 {[%clk 0:00:07]}  g6 {[%clk 0:00:03]} 71. Bf3 {[%clk 0:00:04]}  Rc5 {[%clk 0:00:03]} 72. Nd3 {[%clk 0:00:04]}  Ra5 {[%clk 0:00:03]} 73. h5 {[%clk 0:00:05]}  g5 {[%clk 0:00:03]} 74. g4 {[%clk 0:00:04]}  Kg7 {[%clk 0:00:03]} 75. Nb4 {[%clk 0:00:05]}  Rb5 {[%clk 0:00:02]} 76. Nc6 {[%clk 0:00:05]}  Rc5 {[%clk 0:00:02]} 77. Nd4 {[%clk 0:00:06]}  Kf6 {[%clk 0:00:02]} 78. Nc6 {[%clk 0:00:06]}  Rc8 {[%clk 0:00:01]} 79. Nd4 {[%clk 0:00:05]}  R5c7 {[%clk 0:00:02]} 80. Rd6 {[%clk 0:00:05]}  Ke5 {[%clk 0:00:02]} 81. Nb5 {[%clk 0:00:03]}  Rc2 {[%clk 0:00:02]} 82. Rd3 {[%clk 0:00:03]}  Rb2 {[%clk 0:00:02]} 83. Re3+ {[%clk 0:00:03]}  Kf6 {[%clk 0:00:01]} 84. Nd4 {[%clk 0:00:04]}  Rd8 {[%clk 0:00:01]} 85. Ne2 {[%clk 0:00:05]}  Rd6 {[%clk 0:00:01]} 86. Re4 {[%clk 0:00:05]}  Kg7 {[%clk 0:00:02]} 87. Re3 {[%clk 0:00:05]}  Rdd2 {[%clk 0:00:02]} 88. Re4 {[%clk 0:00:06]}  Rdc2 {[%clk 0:00:03]} 89. Re3 {[%clk 0:00:06]}  Ra2 {[%clk 0:00:03]} 90. Kg3 {[%clk 0:00:07]}  Rd2 {[%clk 0:00:04]} 91. Nc3 {[%clk 0:00:06]}  Rac2 {[%clk 0:00:04]} 92. Ne4 {[%clk 0:00:07]}  Rd4 {[%clk 0:00:04]} 93. Ra3 {[%clk 0:00:06]}  f5 {[%clk 0:00:04]} 94. gxf5 {[%clk 0:00:05]}  exf5 {[%clk 0:00:05]} 95. Rc3 {[%clk 0:00:04]}  Rxc3 {[%clk 0:00:04]} 96. Nxc3 {[%clk 0:00:05]}  Rd3 {[%clk 0:00:05]} 97. Nd5 {[%clk 0:00:01]}  g4 {[%clk 0:00:05]} 98. Kf4 {[%clk 0:00:01]}  Rxf3+ {[%clk 0:00:05]} 0-1

[Event "January 9 Late 2024"]
[Site "https://www.chess.com"]
[Date "2024.01.09"]
[Round "10"]
[White "Ibarra Jerez, Jose Carlos"]
[Black "Sarana, Alexey"]
[Result "0-1"]
[Board "9"]
[TimeControl "180+1"]
[WhiteFideId "2226332"]
[BlackFideId "24133795"]
[WhiteElo "2931"]
[BlackElo "3048"]
[WhiteTeam "ESP"]
[BlackTeam "SRB"]
[WhiteClock "0:00:00"]
[BlackClock "0:00:48"]

1. e4 {[%clk 0:03:00]}  c5 {[%clk 0:02:59]} 2. Nf3 {[%clk 0:03:00]}  e6 {[%clk 0:02:59]} 3. d3 {[%clk 0:02:57]}  Nc6 {[%clk 0:02:59]} 4. g3 {[%clk 0:02:57]}  Nf6 {[%clk 0:02:59]} 5. Bg2 {[%clk 0:02:57]}  d5 {[%clk 0:02:59]} 6. Qe2 {[%clk 0:02:57]}  Be7 {[%clk 0:02:59]} 7. O-O {[%clk 0:02:57]}  O-O {[%clk 0:02:58]} 8. e5 {[%clk 0:02:57]}  Nd7 {[%clk 0:02:58]} 9. c4 {[%clk 0:02:58]}  Qc7 {[%clk 0:02:51]} 10. Bf4 {[%clk 0:02:55]}  Nb6 {[%clk 0:02:42]} 11. Nc3 {[%clk 0:02:54]}  Rd8 {[%clk 0:02:42]} 12. h4 {[%clk 0:02:44]}  a6 {[%clk 0:02:40]} 13. Rac1 {[%clk 0:02:40]}  Nd4 {[%clk 0:02:36]} 14. Nxd4 {[%clk 0:02:36]}  cxd4 {[%clk 0:02:37]} 15. cxd5 {[%clk 0:02:22]}  dxc3 {[%clk 0:02:36]} 16. d6 {[%clk 0:02:22]}  Qd7 {[%clk 0:02:15]} 17. dxe7 {[%clk 0:01:51]}  Qxe7 {[%clk 0:02:14]} 18. Bg5 {[%clk 0:01:44]}  f6 {[%clk 0:02:14]} 19. exf6 {[%clk 0:01:44]}  gxf6 {[%clk 0:02:15]} 20. Be3 {[%clk 0:01:33]}  cxb2 {[%clk 0:02:13]} 21. Qxb2 {[%clk 0:01:31]}  Nd5 {[%clk 0:02:14]} 22. Bc5 {[%clk 0:01:25]}  Qf7 {[%clk 0:02:13]} 23. Rfe1 {[%clk 0:01:17]}  e5 {[%clk 0:02:12]} 24. d4 {[%clk 0:01:13]}  exd4 {[%clk 0:01:47]} 25. Bxd4 {[%clk 0:01:07]}  Be6 {[%clk 0:01:46]} 26. Rc5 {[%clk 0:00:45]}  Rd6 {[%clk 0:01:43]} 27. Qc1 {[%clk 0:00:29]}  Rad8 {[%clk 0:01:41]} 28. Ba1 {[%clk 0:00:26]}  Nb4 {[%clk 0:01:29]} 29. Rc7 {[%clk 0:00:15]}  Qg6 {[%clk 0:01:18]} 30. Qa3 {[%clk 0:00:06]}  Nc2 {[%clk 0:01:01]} 31. Rxc2 {[%clk 0:00:04]}  Qxc2 {[%clk 0:01:02]} 32. Bf3 {[%clk 0:00:03]}  Qf5 {[%clk 0:00:51]} 33. Bg2 {[%clk 0:00:00]}  Bd5 {[%clk 0:00:48]} 0-1

[Event "January 9 Late 2024"]
[Site "https://www.chess.com"]
[Date "2024.01.09"]
[Round "10"]
[White "Fedoseev, Vladimir"]
[Black "Schroeder, Jan-Christian"]
[Result "1/2-1/2"]
[Board "10"]
[TimeControl "180+1"]
[WhiteFideId "24130737"]
[BlackFideId "24662259"]
[WhiteElo "3045"]
[BlackElo "2864"]
[WhiteTeam "SLO"]
[BlackTeam "GER"]
[WhiteClock "0:00:07"]
[BlackClock "0:00:30"]

1. c4 {[%clk 0:02:33]}  e6 {[%clk 0:02:59]} 2. Nf3 {[%clk 0:02:29]}  d5 {[%clk 0:03:00]} 3. b3 {[%clk 0:02:25]}  Nf6 {[%clk 0:03:00]} 4. Bb2 {[%clk 0:02:25]}  Be7 {[%clk 0:02:59]} 5. g3 {[%clk 0:02:25]}  O-O {[%clk 0:03:00]} 6. Bg2 {[%clk 0:02:25]}  b6 {[%clk 0:02:57]} 7. cxd5 {[%clk 0:02:21]}  Nxd5 {[%clk 0:02:56]} 8. O-O {[%clk 0:02:16]}  Bb7 {[%clk 0:02:56]} 9. Ne5 {[%clk 0:02:00]}  Nd7 {[%clk 0:02:55]} 10. Nc4 {[%clk 0:01:52]}  Bf6 {[%clk 0:02:50]} 11. d4 {[%clk 0:01:50]}  c5 {[%clk 0:02:38]} 12. e4 {[%clk 0:01:48]}  Nc7 {[%clk 0:02:33]} 13. Nd6 {[%clk 0:01:21]}  Ba6 {[%clk 0:02:31]} 14. e5 {[%clk 0:01:20]}  Bxf1 {[%clk 0:02:27]} 15. Bxa8 {[%clk 0:01:19]}  Qxa8 {[%clk 0:02:25]} 16. Qxf1 {[%clk 0:01:16]}  Be7 {[%clk 0:02:25]} 17. dxc5 {[%clk 0:01:11]}  Nxc5 {[%clk 0:02:24]} 18. Nc3 {[%clk 0:01:11]}  Rd8 {[%clk 0:02:19]} 19. Rd1 {[%clk 0:01:09]}  Ne8 {[%clk 0:02:19]} 20. Ncb5 {[%clk 0:00:53]}  a6 {[%clk 0:02:16]} 21. Nxe8 {[%clk 0:00:46]}  Rxd1 {[%clk 0:02:15]} 22. Qxd1 {[%clk 0:00:47]}  Qxe8 {[%clk 0:02:11]} 23. Nd6 {[%clk 0:00:47]}  Qc6 {[%clk 0:02:11]} 24. Ba3 {[%clk 0:00:42]}  g6 {[%clk 0:02:02]} 25. Nc4 {[%clk 0:00:26]}  Bf8 {[%clk 0:01:50]} 26. h4 {[%clk 0:00:24]}  b5 {[%clk 0:01:42]} 27. Ne3 {[%clk 0:00:24]}  Qe4 {[%clk 0:01:38]} 28. Ng4 {[%clk 0:00:23]}  Qd3 {[%clk 0:01:34]} 29. Nf6+ {[%clk 0:00:19]}  Kg7 {[%clk 0:01:34]} 30. Ne8+ {[%clk 0:00:17]}  Kg8 {[%clk 0:01:34]} 31. Nf6+ {[%clk 0:00:16]}  Kg7 {[%clk 0:01:34]} 32. Qc1 {[%clk 0:00:13]}  Qd4 {[%clk 0:01:23]} 33. Qg5 {[%clk 0:00:12]}  h6 {[%clk 0:01:21]} 34. Ne8+ {[%clk 0:00:06]}  Kg8 {[%clk 0:01:21]} 35. Nf6+ {[%clk 0:00:07]}  Kg7 {[%clk 0:01:22]} 36. Ne8+ {[%clk 0:00:07]}  Kg8 {[%clk 0:01:22]} 37. Nf6+ {[%clk 0:00:03]}  Kh8 {[%clk 0:01:12]} 38. Qc1 {[%clk 0:00:02]}  Nd3 {[%clk 0:01:03]} 39. Qd2 {[%clk 0:00:03]}  b4 {[%clk 0:00:57]} 40. Bb2 {[%clk 0:00:02]}  Qxb2 {[%clk 0:00:56]} 41. Qxd3 {[%clk 0:00:02]}  Qxe5 {[%clk 0:00:56]} 42. Nd7 {[%clk 0:00:03]}  Qd6 {[%clk 0:00:56]} 43. Qxd6 {[%clk 0:00:01]}  Bxd6 {[%clk 0:00:56]} 44. Nb6 {[%clk 0:00:01]}  Kg7 {[%clk 0:00:56]} 45. Nc4 {[%clk 0:00:02]}  Bc5 {[%clk 0:00:56]} 46. Kf1 {[%clk 0:00:03]}  f6 {[%clk 0:00:55]} 47. Ke2 {[%clk 0:00:04]}  e5 {[%clk 0:00:56]} 48. f3 {[%clk 0:00:04]}  Kf7 {[%clk 0:00:56]} 49. Na5 {[%clk 0:00:04]}  h5 {[%clk 0:00:53]} 50. Nc4 {[%clk 0:00:05]}  Ke6 {[%clk 0:00:53]} 51. Nd2 {[%clk 0:00:05]}  f5 {[%clk 0:00:53]} 52. Nc4 {[%clk 0:00:05]}  Be7 {[%clk 0:00:53]} 53. Nb2 {[%clk 0:00:05]}  Kd5 {[%clk 0:00:52]} 54. Nd3 {[%clk 0:00:05]}  Kd4 {[%clk 0:00:51]} 55. f4 {[%clk 0:00:06]}  Bd6 {[%clk 0:00:45]} 56. fxe5 {[%clk 0:00:06]}  Bxe5 {[%clk 0:00:46]} 57. Nxb4 {[%clk 0:00:06]}  Bxg3 {[%clk 0:00:46]} 58. Nxa6 {[%clk 0:00:07]}  Bxh4 {[%clk 0:00:46]} 59. b4 {[%clk 0:00:07]}  Bd8 {[%clk 0:00:45]} 60. a4 {[%clk 0:00:07]}  h4 {[%clk 0:00:45]} 61. a5 {[%clk 0:00:06]}  Kc4 {[%clk 0:00:40]} 62. Nb8 {[%clk 0:00:06]}  Kxb4 {[%clk 0:00:34]} 63. Nc6+ {[%clk 0:00:05]}  Kb5 {[%clk 0:00:34]} 64. Nxd8 {[%clk 0:00:06]}  Kxa5 {[%clk 0:00:30]} 65. Ne6 {[%clk 0:00:07]} 1/2-1/2